fUST/lending_fUST_20250504
["ID","MTS","AMOUNT","RATE_DAILY","PERIOD"]
[359803934,1746354652034,-500.0,0.00038904,2]
[359803936,1746354652044,-1234.72,0.00038904,15]
[359803938,1746354652053,-500.0,0.00038904,2]
[359803940,1746354652063,-1234.72,0.00038904,15]
[359803942,1746354652073,-500.0,0.00038904,2]
[359803944,1746354652083,-1234.72,0.00038904,15]
[359803946,1746354652093,-1234.72,0.00038904,15]
[359803948,1746354652102,-577.14652587,0.00038904,2]
[359803950,1746354652112,-400.0,0.00038904,15]
[359803952,1746354652122,-1234.84,0.00038904,15]
[359803954,1746354652132,-400.0,0.00038904,15]
[359803956,1746354652141,-400.0,0.00038904,15]
[359803958,1746354652151,-400.0,0.00038904,15]
[359803960,1746354652160,-250.55901335,0.00038904,15]
[359803962,1746354652170,-463.45,0.00038904,15]
[359803964,1746354652180,-400.0,0.00038904,15]
[359803966,1746354652190,-400.0,0.00038904,15]
[359803968,1746354652200,-400.0,0.00038904,15]
[359803970,1746354652209,-400.0,0.00038904,15]
[359803972,1746354652219,-400.0,0.00038904,15]
[359803974,1746354652228,-400.0,0.00038904,15]
[359803976,1746354652238,-400.0,0.00038904,15]
[359803978,1746354652247,-439.95,0.00038904,15]
[359803980,1746354652257,-400.0,0.00038904,15]
[359803982,1746354652267,-400.0,0.00038904,15]
[359803984,1746354652276,-400.0,0.00038904,15]
[359803986,1746354652286,-400.0,0.00038904,15]
[359803989,1746354652296,-436.03,0.00038904,15]
[359803991,1746354652305,-400.0,0.00038904,15]
[359803993,1746354652315,-402.58863215,0.00038904,15]
[359803994,1746354652324,-436.03,0.00038904,15]
[359803997,1746354652334,-400.0,0.00038904,15]
[359803998,1746354652343,-400.0,0.00038904,15]
[359804000,1746354652352,-400.0,0.00038904,15]
[359804003,1746354652362,-400.0,0.00038904,15]
[359804005,1746354652372,-414.43,0.00038904,15]
[359804007,1746354652381,-400.0,0.00038904,15]
[359804009,1746354652391,-1000.19,0.00038904,15]
[359804011,1746354652401,-400.0,0.00038904,15]
[359804013,1746354652410,-1000.19,0.00038904,15]
[359804015,1746354652420,-400.0,0.00038904,15]
[359804017,1746354652429,-1000.19,0.00038904,15]
[359804019,1746354652439,-400.0,0.00038904,15]
[359804021,1746354652449,-400.0,0.00038904,15]
[359804023,1746354652458,-401.85658622,0.00038904,15]
[359804025,1746354652467,-400.0,0.00038904,15]
[359804026,1746354652477,-400.0,0.00038904,15]
[359804028,1746354652487,-1000.19,0.00038904,15]
[359804030,1746354652496,-400.0,0.00038904,15]
[359804032,1746354652506,-400.0,0.00038904,15]
[359804034,1746354652515,-1000.19,0.00038904,15]
[359804058,1746354652735,-400.0,0.00038904,15]
[359804060,1746354652745,-400.0,0.00038904,15]
[359804062,1746354652754,-1000.19,0.00038904,15]
[359804063,1746354652764,-400.0,0.00038904,15]
[359804064,1746354652773,-400.0,0.00038904,15]
[359804065,1746354652782,-1000.19,0.00038904,15]
[359804066,1746354652791,-362.83823762,0.00038904,15]
[359804067,1746354652800,-1000.19,0.00038904,15]
[359804068,1746354652809,-400.0,0.00038904,15]
[359804069,1746354652818,-1000.19,0.00038904,15]
[359804070,1746354652826,-400.0,0.00038904,15]
[359804071,1746354652835,-1000.19,0.00038904,15]
[359804072,1746354652844,-400.0,0.00038904,15]
[359804073,1746354652854,-1000.19,0.00038904,15]
[359804074,1746354652863,-400.0,0.00038904,15]
[359804075,1746354652873,-1000.19,0.00038904,15]
[359804076,1746354652883,-400.0,0.00038904,15]
[359804077,1746354652891,-506.57,0.00038904,15]
[359804078,1746354652901,-1000.19,0.00038904,15]
[359804079,1746354652910,-1000.19,0.00038904,15]
[359804080,1746354652919,-1000.19,0.00038904,15]
[359804081,1746354652928,-1000.19,0.00038904,15]
[359804082,1746354652938,-1000.19,0.00038904,15]
[359804083,1746354652947,-1000.19,0.00038904,15]
[359804084,1746354652956,-400.0,0.00038904,15]
[359804085,1746354652965,-400.0,0.00038904,15]
[359804086,1746354652974,-1000.19,0.00038904,15]
[359804087,1746354652984,-400.0,0.00038904,15]
[359804088,1746354652993,-400.0,0.00038904,15]
[359804090,1746354653003,-400.0,0.00038904,15]
[359804091,1746354653013,-1000.19,0.00038904,15]
[359804093,1746354653022,-400.0,0.00038904,15]
[359804094,1746354653031,-1000.19,0.00038904,15]
[359804095,1746354653041,-400.0,0.00038904,15]
[359804096,1746354653050,-1000.19,0.00038904,15]
[359804098,1746354653059,-1000.19,0.00038904,15]
[359804100,1746354653070,-400.0,0.00038904,15]
[359804101,1746354653080,-1000.20304917,0.00038904,15]
[359804102,1746354653089,-400.0,0.00038904,15]
[359804103,1746354653099,-400.0,0.00038904,15]
[359804104,1746354653108,-400.0,0.00038904,15]
[359804105,1746354653118,-400.0,0.00038904,15]
[359804106,1746354653128,-400.0,0.00038904,15]
[359804107,1746354653138,-400.0,0.00038904,15]
[359804108,1746354653148,-400.0,0.00038904,15]
[359804109,1746354653157,-400.0,0.00038904,15]
[359804110,1746354653167,-400.0,0.00038904,15]
[359804111,1746354653177,-401.11672401,0.00038904,15]
[359804112,1746354653187,-400.0,0.00038904,15]
[359804113,1746354653196,-400.0,0.00038904,15]
[359804114,1746354653206,-400.0,0.00038904,15]
[359804115,1746354653216,-400.0,0.00038904,15]
[359804116,1746354653225,-400.0,0.00038904,15]
[359804117,1746354653236,-400.0,0.00038904,15]
[359804118,1746354653245,-400.0,0.00038904,15]
[359804119,1746354653254,-400.0,0.00038904,15]
[359804120,1746354653264,-400.0,0.00038904,15]
[359804121,1746354653273,-400.0,0.00038904,15]
[359804122,1746354653283,-287.96,0.00038904,15]
[359804123,1746354653361,-400.0,0.00038904,15]
[359804124,1746354653371,-400.0,0.00038904,15]
[359804125,1746354653381,-172.64,0.00038904,15]
[359804126,1746354653390,-400.0,0.00038904,15]
[359804127,1746354653399,-400.0,0.00038904,15]
[359804128,1746354653409,-400.0,0.00038904,15]
[359804129,1746354653418,-400.0,0.00038904,15]
[359804131,1746354653428,-400.0,0.00038904,15]
[359804132,1746354653440,-400.0,0.00038904,15]
[359804133,1746354653450,-400.0,0.00038904,15]
[359804135,1746354653460,-400.0,0.00038904,15]
[359804137,1746354653469,-219.96,0.00038904,15]
[359804139,1746354653479,-400.0,0.00038904,15]
[359804141,1746354653488,-400.0,0.00038904,15]
[359804143,1746354653498,-400.0,0.00038904,15]
[359804145,1746354653507,-400.0,0.00038904,15]
[359804146,1746354653518,-400.0,0.00038904,15]
[359804148,1746354653528,-400.0,0.00038904,15]
[359804149,1746354653538,-400.0,0.00038904,15]
[359804151,1746354653548,-400.0,0.00038904,15]
[359804152,1746354653557,-400.0,0.00038904,15]
[359804153,1746354653567,-400.0,0.00038904,15]
[359804155,1746354653576,-400.0,0.00038904,15]
[359804157,1746354653586,-400.0,0.00038904,15]
[359804158,1746354653596,-400.0,0.00038904,15]
[359804159,1746354653605,-400.0,0.00038904,15]
[359804160,1746354653615,-400.0,0.00038904,15]
[359804161,1746354653624,-429.52,0.00038904,15]
[359804162,1746354653634,-400.0,0.00038904,15]
[359804163,1746354653643,-400.0,0.00038904,15]
[359804164,1746354653653,-400.0,0.00038904,15]
[359804165,1746354653664,-400.0,0.00038904,15]
[359804166,1746354653673,-400.0,0.00038904,15]
[359804168,1746354653683,-400.0,0.00038904,15]
[359804170,1746354653692,-400.0,0.00038904,15]
[359804172,1746354653702,-400.0,0.00038904,15]
[359804173,1746354653711,-400.0,0.00038904,15]
[359804174,1746354653720,-400.0,0.00038904,15]
[359804175,1746354653731,-400.0,0.00038904,15]
[359804176,1746354653741,-1114.36,0.00038904,15]
[359804177,1746354653750,-400.0,0.00038904,15]
[359804178,1746354653759,-1114.36,0.00038904,15]
[359804179,1746354653769,-1114.36,0.00038904,15]
[359804180,1746354653778,-199.23,0.00038904,15]
[359804181,1746354653787,-1114.36,0.00038904,15]
[359804182,1746354653797,-1114.36,0.00038904,15]
[359804183,1746354653806,-1114.36,0.00038904,15]
[359804184,1746354653816,-1114.36,0.00038904,15]
[359804185,1746354653826,-1114.36,0.00038904,15]
[359804186,1746354653836,-1114.36,0.00038904,15]
[359804187,1746354653846,-1114.36,0.00038904,15]
[359804188,1746354653855,-1114.36,0.00038904,15]
[359804189,1746354653866,-1114.36,0.00038904,15]
[359804190,1746354653876,-1114.36,0.00038904,15]
[359804191,1746354653886,-1114.36,0.00038904,15]
[359804192,1746354653896,-1114.36,0.00038904,15]
[359804193,1746354653905,-1114.36,0.00038904,15]
[359804194,1746354653915,-1114.36,0.00038904,15]
[359804195,1746354653926,-1114.36,0.00038904,15]
[359804196,1746354653935,-400.0,0.00038904,15]
[359804197,1746354653945,-1114.36,0.00038904,15]
[359804198,1746354653955,-400.0,0.00038904,15]
[359804199,1746354653965,-1114.36,0.00038904,15]
[359804200,1746354653976,-400.0,0.00038904,15]
[359804201,1746354653986,-400.0,0.00038904,15]
[359804202,1746354653995,-1114.36,0.00038904,15]
[359804203,1746354654006,-400.0,0.00038904,15]
[359804204,1746354654015,-1114.36,0.00038904,15]
[359804205,1746354654025,-400.0,0.00038904,15]
[359804206,1746354654036,-1114.36,0.00038904,15]
[359804207,1746354654045,-400.0,0.00038904,15]
[359804208,1746354654055,-400.0,0.00038904,15]
[359804209,1746354654065,-1114.48,0.00038904,15]
[359804210,1746354654074,-400.0,0.00038904,15]
[359804211,1746354654084,-400.0,0.00038904,15]
[359804212,1746354654093,-400.0,0.00038904,15]
[359804213,1746354654102,-400.0,0.00038904,15]
[359804214,1746354654112,-291.21,0.00038904,15]
[359804215,1746354654121,-500.54552693,0.00038904,2]
[359804216,1746354654131,-400.0,0.00038904,15]
[359804217,1746354654140,-400.0,0.00038904,15]
[359804218,1746354654149,-400.0,0.00038904,15]
[359804219,1746354654158,-437.35041059,0.00038904,15]
[359804220,1746354654168,-400.0,0.00038904,15]
[359804221,1746354654177,-400.0,0.00038904,2]
[359804222,1746354654186,-400.0,0.00038904,2]
[359804223,1746354654195,-297.58423185,0.00038904,15]
[359804224,1746354654204,-400.0,0.00038904,2]
[359804225,1746354654213,-401.11709431,0.00038904,2]
[359804226,1746354654222,-400.0,0.00038904,15]
[359804227,1746354654232,-400.0,0.00038904,15]
[359804228,1746354654242,-400.0,0.00038904,15]
[359804229,1746354654252,-400.0,0.00038904,15]
[359804230,1746354654261,-342.54,0.00038904,15]
[359804231,1746354654270,-400.0,0.00038904,15]
[359804232,1746354654279,-400.0,0.00038904,15]
[359804233,1746354654289,-400.0,0.00038904,15]
[359804234,1746354654298,-548.68492734,0.00038904,15]
[359804235,1746354654307,-248.54,0.00038904,15]
[359804236,1746354654316,-400.0,0.00038904,15]
[359804237,1746354654325,-400.0,0.00038904,15]
[359804238,1746354654334,-400.0,0.00038904,15]
[359804239,1746354654343,-400.0,0.00038904,15]
[359804240,1746354654352,-400.0,0.00038904,15]
[359804241,1746354654361,-400.0,0.00038904,15]
[359804242,1746354654370,-400.0,0.00038904,15]
[359804243,1746354654379,-402.982926,0.00038904,15]
[359804244,1746354654389,-400.0,0.00038904,15]
[359804245,1746354654397,-400.0,0.00038904,15]
[359804246,1746354654406,-400.0,0.00038904,15]
[359804247,1746354654416,-514.98909335,0.00038904,15]
[359804248,1746354654425,-400.0,0.00038904,15]
[359804249,1746354654434,-400.0,0.00038904,15]
[359804250,1746354654447,-210.17858371,0.00038904,15]
[359804251,1746354654457,-400.0,0.00038904,15]
[359804252,1746354654466,-400.0,0.00038904,15]
[359804253,1746354654476,-750.127751,0.00038933,2]
[359804254,1746354654485,-3284.94109343,0.00038963,3]
[359804255,1746354654495,-500.40563181,0.00038973,5]
[359804256,1746354654504,-500.0,0.00038973,5]
[359804257,1746354654513,-500.0,0.00038973,5]
[359804258,1746354654523,-500.0,0.00038973,5]
[359804259,1746354654533,-500.0,0.00038973,5]
[359804260,1746354654543,-500.0,0.00038973,5]
[359804261,1746354654552,-500.0,0.00038973,5]
[359804262,1746354654561,-500.0,0.00038973,2]
[359804263,1746354654571,-500.01028454,0.00038973,5]
[359804264,1746354654580,-538.39696297,0.00038973,5]
[359804265,1746354654590,-500.0,0.00038973,5]
[359804266,1746354654599,-500.0,0.00038973,5]
[359804267,1746354654609,-500.0,0.00038973,5]
[359804268,1746354654619,-500.0,0.00038973,5]
[359804269,1746354654629,-500.0,0.00038973,5]
[359804270,1746354654639,-500.0,0.00038973,5]
[359804271,1746354654649,-500.0,0.00038973,5]
[359804272,1746354654658,-500.0,0.00038973,5]
[359804273,1746354654669,-500.0,0.00038973,2]
[359804274,1746354654679,-500.0,0.00038973,5]
[359804275,1746354654688,-500.0,0.00038973,5]
[359804276,1746354654698,-6569.88218686,0.0003898,3]
[359804277,1746354654708,-100000.0,0.0003899,2]
[359804278,1746354654718,-151.0,0.0003899,14]
[359804279,1746354654727,-151.0,0.0003899,14]
[359804280,1746354654737,-151.0,0.0003899,14]
[359804281,1746354654747,-151.0,0.0003899,14]
[359804282,1746354654757,-6569.88218686,0.0003899,3]
[359804283,1746354654767,-151.0,0.0003899,14]
[359804284,1746354654776,-183.887976,0.0003899,2]
[359804285,1746354654786,-580.291606,0.0003899,14]
[359804286,1746354654796,-183.887976,0.0003899,2]
[359804287,1746354654882,-580.291606,0.0003899,14]
[359804288,1746354654891,-151.0,0.0003899,14]
[359804289,1746354654901,-283.180708,0.0003899,14]
[359804290,1746354654911,-29754.0,0.00039,2]
[359804291,1746354654921,-21865.50337269,0.00039,30]
[359804292,1746354654931,-1398.58335552,0.00039,120]
[359804293,1746354654941,-803.3093305,0.00039,14]
[359804294,1746354654950,-10111.84,0.00039,30]
[359804295,1746354654960,-1001.15,0.00039,7]
[359804296,1746354654970,-30966.07,0.00039,30]
[359804297,1746354654979,-151.0,0.00039,14]
[359804298,1746354654989,-151.0,0.00039,14]
[359804299,1746354654999,-151.0,0.00039,14]
[359804300,1746354655009,-151.0,0.00039,14]
[359804301,1746354655019,-151.0,0.00039,14]
[359804302,1746354655028,-5000.0,0.00039033,2]
[359804303,1746354655038,-1177.32,0.00039048,30]
[359804304,1746354655048,-200.0,0.00039054,120]
[359804305,1746354655057,-10000.0,0.000392,31]
[359804306,1746354655067,-4600.00714,0.000392,32]
[359804307,1746354655077,-679.68,0.00039203,120]
[359804308,1746354655086,-160.0,0.00039286,3]
[359804309,1746354655096,-276.42498352,0.00039286,5]
[359804310,1746354655105,-160.0,0.000393,59]
[359804311,1746354655115,-151.50998303,0.00039314,30]
[359804312,1746354655124,-200.0,0.00039314,30]
[359804313,1746354655134,-155.0,0.00039314,30]
[359804314,1746354655143,-151.0,0.00039314,30]
[359804315,1746354655153,-151.84335757,0.00039314,30]
[359804316,1746354655163,-167.90620495,0.00039389,120]
[359804317,1746354655173,-404.25604749,0.00039389,2]
[359804318,1746354655182,-334.51099714,0.000394,60]
[359804319,1746354655191,-1034.6,0.000394,30]
[359804320,1746354655200,-679.68,0.00039403,120]
[359804321,1746354655209,-200.0,0.0003943,120]
[359804322,1746354655219,-309.0,0.00039452,18]
[359804323,1746354655229,-501.03088192,0.00039473,5]
[359804324,1746354655239,-500.0,0.00039473,5]
[359804325,1746354655248,-200.0,0.00039473,5]
[359804326,1746354655257,-500.0,0.00039473,5]
[359804327,1746354655266,-500.0,0.00039473,5]
[359804328,1746354655276,-500.0,0.00039473,5]
[359804329,1746354655285,-500.0,0.00039473,5]
[359804330,1746354655295,-636.38807985,0.00039473,5]
[359804331,1746354655304,-596.22253797,0.00039473,5]
[359804332,1746354655313,-501.36543298,0.00039473,5]
[359804333,1746354655323,-500.45089259,0.00039473,5]
[359804334,1746354655332,-500.0,0.00039473,5]
[359804335,1746354655341,-501.59682045,0.00039473,5]
[359804336,1746354655351,-632.58915817,0.00039473,5]
[359804337,1746354655361,-164.04701372,0.00039473,5]
[359804338,1746354655370,-500.0,0.00039473,5]
[359804339,1746354655379,-500.0,0.00039473,5]
[359804340,1746354655388,-500.0,0.00039473,5]
[359804341,1746354655398,-500.0,0.00039473,5]
[359804342,1746354655408,-300.09959214,0.00039473,5]
[359804343,1746354655418,-500.0,0.00039473,5]
[359804344,1746354655427,-501.16195604,0.00039473,5]
[359804345,1746354655437,-501.77793966,0.00039473,5]
[359804346,1746354655450,-500.98382815,0.00039473,5]
[359804347,1746354655460,-502.81691656,0.00039473,5]
[359804348,1746354655470,-500.0,0.00039473,5]
[359804349,1746354655479,-500.0,0.00039473,5]
[359804350,1746354655493,-500.0,0.00039473,5]
[359804351,1746354655503,-501.98235286,0.00039473,5]
[359804352,1746354655513,-502.35478037,0.00039473,5]
[359804353,1746354655523,-543.8064901,0.00039473,5]
[359804354,1746354655533,-500.0,0.00039473,5]
[359804355,1746354655543,-500.0,0.00039473,5]
[359804356,1746354655552,-173.876323,0.00039477,14]
[359804357,1746354655562,-685.29,0.00039479,3]
[359804358,1746354655572,-151.0,0.00039482,14]
[359804359,1746354655581,-200.961762,0.00039482,14]
[359804360,1746354655591,-151.0,0.00039482,14]
[359804361,1746354655601,-534.51450072,0.00039488,7]
[359804362,1746354655612,-500.0,0.00039488,15]
[359804363,1746354655621,-487.913436,0.00039488,15]
[359804364,1746354655631,-500.0,0.00039488,15]
[359804365,1746354655641,-509.68079633,0.00039488,15]
[359804366,1746354655654,-239.67782577,0.00039488,15]
[359804367,1746354655664,-379.24513584,0.00039488,3]
[359804368,1746354655674,-591623.56091492,0.00039489,20]
[359804369,1746354655785,-5000.0,0.00039489,20]
[359804370,1746354656306,-576.63313106,0.00039489,20]
[359804371,1746354656318,-2356.251372,0.00039489,20]
[359804384,1746355353025,18238.37405884,0.0002,2]
[359804385,1746355355263,-180.93918439,0.0002,2]
[359804386,1746355361699,-150.53815928,0.0002,2]
[359804387,1746355364639,331.93094289,0.00026849,20]
[359804388,1746355364808,-300.0,0.0002,2]
[359804389,1746355365294,-21130.14859749,0.0002,2]
[359804392,1746355556138,-450.53815928,0.00027024,2]
[359804393,1746355556162,-930.08020178,0.00027297,2]
[359804394,1746355556183,-200.10273015,0.00027297,2]
[359804395,1746355556204,-680.884753,0.00027397,2]
[359804396,1746355556224,-349.0,0.00027397,5]
[359804397,1746355556244,-181.0,0.00027397,3]
[359804398,1746355556268,-211.63064781,0.000279,18]
[359804399,1746355556291,-211.63064775,0.000294,20]
[359804400,1746355556314,-211.63064775,0.000309,23]
[359804401,1746355556339,-79.18906244,0.00031553,3]
[359804402,1746355634114,-150.0,0.000189,2]
[359804403,1746355634134,-150.0,0.000239,2]
[359804404,1746355634153,-51.47911436,0.00026924,2]
[359804405,1746355638096,-948.52088564,0.00026924,2]
[359804406,1746355638118,-313.73916419,0.00027,3]
[359804407,1746355638138,-200.82209684,0.00031454,2]
[359804408,1746355638158,-356.81093756,0.00031553,3]
[359804409,1746355638179,-505.5,0.00031554,30]
[359804410,1746355638202,-215.81013728,0.000319,25]
[359804411,1746355638223,-200.0,0.00032,120]
[359804412,1746355638369,-160.0,0.00033162,2]
[359804413,1746355638391,-680.884753,0.00033165,2]
[359804414,1746355638414,-215.81013722,0.00033233,28]
[359804415,1746355638434,-453.15792843,0.0003328,2]
[359804416,1746355638454,-400.0,0.00033548,2]
[359804417,1746355638474,-300.0,0.00033549,3]
[359804418,1746355638496,-1339.91771593,0.00033549,2]
[359804419,1746355644117,-1548.39470712,0.00033549,2]
[359804443,1746355831757,-500.0,0.00027397,5]
[359804445,1746355831767,-174.0,0.00027397,3]
[359804447,1746355831776,-151.54516497,0.00031354,2]
[359804449,1746355831786,-151.0,0.00032877,5]
[359804451,1746355831795,-813.8609692,0.00033551,2]
[359804453,1746355831805,-254.9631017,0.00033596,2]
[359804454,1746355831815,-500.0,0.000336,2]
[359804455,1746355831824,-215.81013722,0.000339,29]
[359804456,1746355831835,-216.0,0.00034,120]
[359804457,1746355831845,-235.961928,0.00034078,2]
[359804458,1746355831854,-8388.69667688,0.00034112,2]
[359804459,1746355831863,-250.0,0.00034112,2]
[359804460,1746355831874,-2368.244495,0.0003425,2]
[359804461,1746355831887,-185.406425,0.00034393,120]
[359804462,1746355831897,-230.074247,0.00034407,2]
[359804463,1746355831906,-300.0,0.00035259,3]
[359804464,1746355831915,-400.0,0.00035259,2]
[359804465,1746355831925,-215.81013722,0.000354,32]
[359804466,1746355831935,-403.0,0.00035629,2]
[359804467,1746355831945,-150.252,0.00035629,2]
[359804468,1746355831956,-500.0,0.00035653,60]
[359804469,1746355831966,-200.0,0.00036,120]
[359804470,1746355831975,-500.0,0.00036749,60]
[359804471,1746355831985,-215.81013722,0.000369,35]
[359804472,1746355831995,-348.37,0.000373,2]
[359804473,1746355832005,-982.9979646,0.00037419,4]
[359804474,1746355832015,-500.0,0.00037798,15]
[359804475,1746355832024,-500.0,0.00037798,15]
[359804476,1746355832034,-500.0,0.00037798,15]
[359804477,1746355832044,-500.0,0.00037798,15]
[359804478,1746355832053,-500.0,0.00037798,15]
[359804479,1746355832063,-500.0,0.00037798,15]
[359804480,1746355832073,-510.20738279,0.00037798,15]
[359804481,1746355832082,-500.0,0.00037798,15]
[359804482,1746355832092,-500.0,0.00037798,15]
[359804483,1746355832101,-500.0,0.00037798,15]
[359804484,1746355832111,-500.0,0.00037798,15]
[359804485,1746355832120,-500.0,0.00037798,15]
[359804486,1746355832130,-500.0,0.00037798,15]
[359804487,1746355832140,-500.0,0.00037798,15]
[359804488,1746355832149,-500.0,0.00037798,15]
[359804489,1746355832158,-500.0,0.00037798,15]
[359804490,1746355832167,-500.0,0.00037798,15]
[359804491,1746355832177,-443.3275623,0.00037798,15]
[359804492,1746355832186,-500.0,0.00037798,15]
[359804493,1746355832195,-500.0,0.00037798,15]
[359804494,1746355832205,-500.0,0.00037798,15]
[359804495,1746355832214,-500.0,0.00037798,15]
[359804496,1746355832223,-500.0,0.00037798,15]
[359804497,1746355832232,-441.27430428,0.00037798,15]
[359804498,1746355832242,-500.0,0.00037798,15]
[359804499,1746355832251,-500.0,0.00037798,15]
[359804500,1746355832260,-229.79044627,0.00037798,15]
[359804501,1746355832269,-500.0,0.00037798,15]
[359804502,1746355832278,-500.0,0.00037798,15]
[359804503,1746355832287,-500.0,0.00037798,15]
[359804504,1746355832296,-500.0,0.00037798,15]
[359804505,1746355832305,-500.0,0.00037798,15]
[359804506,1746355832314,-500.0,0.00037798,15]
[359804507,1746355832323,-500.0,0.00037798,15]
[359804508,1746355832332,-500.0,0.00037798,15]
[359804509,1746355832341,-500.0,0.00037798,15]
[359804510,1746355832350,-500.0,0.00037798,15]
[359804511,1746355832359,-19203.7432939,0.000378,2]
[359804573,1746355840229,-24599.2167061,0.000378,2]
[359804575,1746355840240,-500.0,0.00037845,60]
[359804577,1746355840250,-1832.61608246,0.0003799,3]
[359804579,1746355840260,-10205.0,0.00038,30]
[359804581,1746355840269,-200.0,0.00038,120]
[359804583,1746355840278,-2000.0,0.00038,120]
[359804585,1746355840287,-2000.0,0.00038,120]
[359804587,1746355840297,-2000.0,0.00038,120]
[359804589,1746355840306,-2000.0,0.00038,120]
[359804591,1746355840316,-2000.0,0.00038,120]
[359804593,1746355840326,-2000.0,0.00038,120]
[359804595,1746355840335,-313.73916419,0.00038,120]
[359804597,1746355840344,-613.70932284,0.000384,2]
[359804599,1746355840354,-215.81013722,0.000384,38]
[359804601,1746355840364,-7030.2935676,0.00038498,2]
[359804603,1746355840373,-2000.0,0.000385,120]
[359804605,1746355840382,-2000.0,0.000385,120]
[359804607,1746355840391,-2000.0,0.000385,120]
[359804609,1746355840400,-2000.0,0.000385,120]
[359804611,1746355840410,-2000.0,0.000385,120]
[359804613,1746355840419,-2000.0,0.000385,120]
[359804615,1746355840427,-2000.0,0.000385,120]
[359804617,1746355840435,-2000.0,0.000385,120]
[359804619,1746355840444,-2000.0,0.000385,120]
[359804621,1746355840453,-2000.0,0.000385,120]
[359804623,1746355840462,-2000.0,0.000385,120]
[359804625,1746355840471,-2000.0,0.000385,120]
[359804627,1746355840480,-2000.0,0.000385,120]
[359804629,1746355840489,-2000.0,0.000385,120]
[359804632,1746355840498,-613.70932281,0.00038501,2]
[359804634,1746355840506,-613.70932281,0.00038602,2]
[359804636,1746355840515,-613.70932281,0.00038703,2]
[359804638,1746355840524,-613.70932281,0.00038804,2]
[359804640,1746355840533,-27489.2412369,0.00038894,3]
[359804642,1746355840542,-182.19332975,0.00038894,3]
[359804644,1746355840551,-2500.0,0.00038903,10]
[359804646,1746355840560,-2500.0,0.00038903,15]
[359804648,1746355840569,-378.75421289,0.00038903,20]
[359804650,1746355840579,-400.0,0.00038904,15]
[359804652,1746355840588,-400.0,0.00038904,15]
[359804654,1746355840597,-400.0,0.00038904,15]
[359804656,1746355840606,-400.0,0.00038904,15]
[359804658,1746355840615,-400.0,0.00038904,15]
[359804660,1746355840625,-400.0,0.00038904,15]
[359804662,1746355840634,-400.0,0.00038904,15]
[359804664,1746355840643,-400.0,0.00038904,15]
[359804666,1746355840652,-304.68672146,0.00038904,15]
[359804668,1746355840662,-400.0,0.00038904,15]
[359804670,1746355840671,-400.0,0.00038904,15]
[359804672,1746355840680,-400.0,0.00038904,15]
[359804674,1746355840690,-400.0,0.00038904,15]
[359804676,1746355840699,-400.0,0.00038904,15]
[359804678,1746355840709,-400.7171259,0.00038904,15]
[359804680,1746355840718,-400.0,0.00038904,15]
[359804682,1746355840727,-400.0,0.00038904,15]
[359804684,1746355840736,-400.0,0.00038904,15]
[359804686,1746355840745,-400.0,0.00038904,15]